[Event "MCR rapid mládeže 2023 U16"]
[Site "Harachov, Czech Republic"]
[Date "2023.09.10"]
[Round "7.29"]
[White "Velim, Vojtech"]
[Black "Vo, Daniel"]
[Result "1-0"]
[TimeControl "20min+5s/move"]
[WhiteElo "1799"]
[BlackElo "1445"]

1. d4 {[%clk 00:20:07]} {[%emt 00:00:03]} d5 {[%clk 00:20:09]} {[%emt
00:00:02]} 2. c4 {[%clk 00:20:11]} {[%emt 00:00:01]} dxc4 {[%clk 00:20:10]}
{[%emt 00:00:04]} 3. e4 {[%clk 00:20:13]} {[%emt 00:00:02]} e6 {[%clk
00:19:47]} {[%emt 00:00:29]} 4. Bxc4 {[%clk 00:20:14]} {[%emt 00:00:03]} c5
{[%clk 00:19:47]} {[%emt 00:00:04]} 5. Nf3 {[%clk 00:20:06]} {[%emt 00:00:13]}
Nc6 {[%clk 00:19:45]} {[%emt 00:00:08]} 6. d5 {[%clk 00:19:43]} {[%emt
00:00:28]} Na5 {[%clk 00:19:32]} {[%emt 00:00:18]} 7. Bb5+ {[%clk 00:19:10]}
{[%emt 00:00:38]} Bd7 {[%clk 00:19:13]} {[%emt 00:00:25]} 8. Qa4 {[%clk
00:18:46]} {[%emt 00:00:28]} b6 {[%clk 00:18:38]} {[%emt 00:00:40]} 9. Ne5
{[%clk 00:17:53]} {[%emt 00:00:57]} Nf6 {[%clk 00:18:20]} {[%emt 00:00:24]} 10.
Bg5 {[%clk 00:17:47]} {[%emt 00:00:11]} Bxb5 {[%clk 00:16:37]} {[%emt
00:01:48]} 11. Qxb5+ {[%clk 00:17:48]} {[%emt 00:00:04]} Ke7 {[%clk 00:16:32]}
{[%emt 00:00:10]} 12. Nc3 {[%clk 00:16:59]} {[%emt 00:00:53]} a6 {[%clk
00:15:47]} {[%emt 00:00:52]} 13. Qa4 {[%clk 00:14:32]} {[%emt 00:02:32]} b5
{[%clk 00:14:52]} {[%emt 00:01:00]} 14. Qxa5 {[%clk 00:14:31]} {[%emt
00:00:06]} Qxa5 {[%clk 00:13:48]} {[%emt 00:01:08]} 15. Nc6+ {[%clk 00:14:35]}
Kd7 {[%clk 00:13:52]} {[%emt 00:00:02]} 16. Nxa5 {[%clk 00:14:39]} {[%emt
00:00:02]} b4 {[%clk 00:13:48]} {[%emt 00:00:08]} 17. Na4 {[%clk 00:14:15]}
{[%emt 00:00:29]} Nxe4 {[%clk 00:13:43]} {[%emt 00:00:10]} 18. Nb6+ {[%clk
00:14:17]} {[%emt 00:00:03]} Ke8 {[%clk 00:13:14]} {[%emt 00:00:34]} 19. Nxa8
{[%clk 00:14:12]} {[%emt 00:00:10]} Nxg5 {[%clk 00:13:08]} {[%emt 00:00:11]} 20.
O-O-O {[%clk 00:13:58]} {[%emt 00:00:18]} Ne4 {[%clk 00:13:02]} {[%emt
00:00:12]} 21. Rhf1 {[%clk 00:13:00]} {[%emt 00:01:03]} Be7 {[%clk 00:12:23]}
{[%emt 00:00:44]} 22. f3 {[%clk 00:12:11]} {[%emt 00:00:54]} Bg5+ {[%clk
00:12:06]} {[%emt 00:00:21]} 23. Kc2 {[%clk 00:12:10]} {[%emt 00:00:06]} Nd6
{[%clk 00:11:31]} {[%emt 00:00:40]} 24. dxe6 {[%clk 00:12:04]} {[%emt
00:00:12]} Nc8 {[%clk 00:11:29]} {[%emt 00:00:06]} 25. Nc7+ {[%clk 00:11:51]}
{[%emt 00:00:18]} Ke7 {[%clk 00:11:31]} {[%emt 00:00:03]} 26. f4 {[%clk
00:11:06]} {[%emt 00:00:50]} Bf6 {[%clk 00:11:30]} {[%emt 00:00:06]} 27. Nc6+
{[%clk 00:10:41]} {[%emt 00:00:31]} Kf8 {[%clk 00:11:22]} {[%emt 00:00:13]} 28.
Rfe1 {[%clk 00:10:25]} {[%emt 00:00:20]} g6 {[%clk 00:11:03]} {[%emt 00:00:24]}
29. exf7 {[%clk 00:09:36]} {[%emt 00:00:55]} Kxf7 {[%clk 00:10:53]} {[%emt
00:00:15]} 30. Rd7+ {[%clk 00:09:37]} {[%emt 00:00:04]} Kf8 {[%clk 00:10:49]}
{[%emt 00:00:08]} 31. Re8# {[%clk 00:09:39]} {[%emt 00:00:04]} 1-0

[Event "MCR rapid mládeže 2023 U16"]
[Site "Harachov, Czech Republic"]
[Date "2023.09.10"]
[Round "7.30"]
[White "Gernert , Tomas"]
[Black "Fadrny, Jachym"]
[Result "1/2-1/2"]
[TimeControl "20min+5s/move"]
[WhiteElo "1236"]
[BlackElo "1347"]

1. c4 {[%clk 00:20:05]} {[%emt 00:00:04]} e5 {[%clk 00:20:09]} {[%emt
00:00:02]} 2. Nc3 {[%clk 00:20:08]} {[%emt 00:00:02]} Nf6 {[%clk 00:20:12]}
{[%emt 00:00:01]} 3. g3 {[%clk 00:20:09]} {[%emt 00:00:04]} Bb4 {[%clk
00:19:50]} {[%emt 00:00:27]} 4. Bg2 {[%clk 00:20:06]} {[%emt 00:00:07]} Nc6
{[%clk 00:19:41]} {[%emt 00:00:15]} 5. e4 {[%clk 00:19:47]} {[%emt 00:00:23]}
d6 {[%clk 00:19:20]} {[%emt 00:00:27]} 6. Nge2 {[%clk 00:19:22]} {[%emt
00:00:29]} Bg4 {[%clk 00:19:00]} {[%emt 00:00:26]} 7. h3 {[%clk 00:18:38]}
{[%emt 00:00:50]} Be6 {[%clk 00:18:47]} {[%emt 00:00:17]} 8. d3 {[%clk
00:18:19]} {[%emt 00:00:24]} Nd7 {[%clk 00:18:35]} {[%emt 00:00:18]} 9. O-O
{[%clk 00:17:51]} {[%emt 00:00:33]} O-O {[%clk 00:18:26]} {[%emt 00:00:13]} 10.
f4 {[%clk 00:16:24]} {[%emt 00:01:31]} f6 {[%clk 00:17:05]} {[%emt 00:01:26]}
11. f5 {[%clk 00:16:06]} {[%emt 00:00:24]} Bf7 {[%clk 00:16:49]} {[%emt
00:00:22]} 12. g4 {[%clk 00:15:46]} {[%emt 00:00:25]} Bc5+ {[%clk 00:14:57]}
{[%emt 00:01:57]} 13. Kh2 {[%clk 00:14:45]} {[%emt 00:01:04]} Bd4 {[%clk
00:14:12]} {[%emt 00:00:51]} 14. Nxd4 {[%clk 00:13:21]} {[%emt 00:01:29]} exd4
{[%clk 00:12:56]} {[%emt 00:01:21]} 15. Ne2 {[%clk 00:12:58]} {[%emt 00:00:28]}
Nc5 {[%clk 00:12:55]} {[%emt 00:00:07]} 16. a3 {[%clk 00:10:17]} {[%emt
00:02:46]} a5 {[%clk 00:11:43]} {[%emt 00:01:16]} 17. Bf4 {[%clk 00:09:50]}
{[%emt 00:00:31]} Ne5 {[%clk 00:10:42]} {[%emt 00:01:07]} 18. Bxe5 {[%clk
00:09:47]} {[%emt 00:00:08]} dxe5 {[%clk 00:10:16]} {[%emt 00:00:32]} 19. b3
{[%clk 00:08:30]} {[%emt 00:01:22]} a4 {[%clk 00:10:00]} {[%emt 00:00:20]} 20.
b4 {[%clk 00:08:20]} {[%emt 00:00:15]} Nb3 {[%clk 00:09:44]} {[%emt 00:00:22]}
21. Rb1 {[%clk 00:07:40]} {[%emt 00:00:44]} Qe7 {[%clk 00:07:58]} {[%emt
00:01:50]} 22. Nc1 {[%clk 00:07:23]} {[%emt 00:00:23]} b5 {[%clk 00:06:15]}
{[%emt 00:01:49]} 23. Nxb3 {[%clk 00:06:49]} {[%emt 00:00:39]} axb3 {[%clk
00:06:05]} {[%emt 00:00:14]} 24. Qxb3 {[%clk 00:06:27]} {[%emt 00:00:27]} Ra7
{[%clk 00:05:20]} {[%emt 00:00:51]} 25. Ra1 {[%clk 00:05:17]} {[%emt 00:01:14]}
Rfa8 {[%clk 00:05:16]} {[%emt 00:00:09]} 26. Rf2 {[%clk 00:04:06]} {[%emt
00:01:16]} c5 {[%clk 00:05:03]} {[%emt 00:00:18]} 27. bxc5 {[%clk 00:02:13]}
{[%emt 00:01:58]} Qxc5 {[%clk 00:05:02]} {[%emt 00:00:05]} 28. Qxb5 {[%clk
00:02:15]} {[%emt 00:00:04]} Qxb5 {[%clk 00:04:49]} {[%emt 00:00:18]} 29. cxb5
{[%clk 00:02:18]} {[%emt 00:00:02]} Rxa3 {[%clk 00:04:52]} {[%emt 00:00:02]} 30.
Rxa3 {[%clk 00:02:18]} {[%emt 00:00:05]} Rxa3 {[%clk 00:04:56]} {[%emt
00:00:01]} 31. Bf1 {[%clk 00:02:12]} {[%emt 00:00:11]} Rb3 {[%clk 00:04:59]}
{[%emt 00:00:02]} 32. Rc2 {[%clk 00:02:13]} {[%emt 00:00:04]} Rc3 {[%clk
00:04:40]} {[%emt 00:00:24]} 33. Rb2 {[%clk 00:01:53]} {[%emt 00:00:25]} Rc8
{[%clk 00:04:33]} {[%emt 00:00:12]} 34. b6 {[%clk 00:01:50]} {[%emt 00:00:08]}
Rb8 {[%clk 00:04:36]} {[%emt 00:00:02]} 35. Kg3 {[%clk 00:01:53]} {[%emt
00:00:02]} Kf8 {[%clk 00:04:40]} {[%emt 00:00:02]} 36. h4 {[%clk 00:01:51]}
{[%emt 00:00:07]} h6 {[%clk 00:04:40]} {[%emt 00:00:05]} 37. g5 {[%clk
00:01:48]} {[%emt 00:00:07]} Ke7 {[%clk 00:04:18]} {[%emt 00:00:26]} 38. Be2
{[%clk 00:01:07]} {[%emt 00:00:47]} Kd6 {[%clk 00:04:06]} {[%emt 00:00:17]} 39.
Bd1 {[%clk 00:00:54]} {[%emt 00:00:18]} Kc5 {[%clk 00:03:42]} {[%emt 00:00:29]}
40. b7 {[%clk 00:00:48]} {[%emt 00:00:11]} Kc6 {[%clk 00:03:38]} {[%emt
00:00:09]} 41. Ba4+ {[%clk 00:00:51]} {[%emt 00:00:02]} Kc7 {[%clk 00:03:41]}
{[%emt 00:00:03]} 42. g6 {[%clk 00:00:45]} {[%emt 00:00:11]} Bg8 {[%clk
00:03:23]} {[%emt 00:00:22]} 43. h5 {[%clk 00:00:45]} {[%emt 00:00:05]} Rxb7
{[%clk 00:03:27]} {[%emt 00:00:02]} 44. Rxb7+ {[%clk 00:00:43]} {[%emt
00:00:07]} Kxb7 {[%clk 00:03:23]} {[%emt 00:00:08]} 45. Kf2 {[%clk 00:00:46]}
{[%emt 00:00:02]} Kb6 {[%clk 00:03:11]} {[%emt 00:00:17]} 46. Be8 {[%clk
00:00:40]} {[%emt 00:00:11]} Bb3 {[%clk 00:03:09]} {[%emt 00:00:08]} 47. Ke2
{[%clk 00:00:36]} {[%emt 00:00:08]} Kc5 {[%clk 00:03:05]} {[%emt 00:00:10]} 48.
Kd2 {[%clk 00:00:37]} {[%emt 00:00:03]} Kb4 {[%clk 00:03:03]} {[%emt 00:00:07]}
49. Bf7 {[%clk 00:00:41]} {[%emt 00:00:01]} Ba4 {[%clk 00:03:03]} {[%emt
00:00:04]} 50. Be6 {[%clk 00:00:42]} {[%emt 00:00:04]} Ka3 {[%clk 00:03:03]}
{[%emt 00:00:06]} 51. Bf7 {[%clk 00:00:40]} {[%emt 00:00:07]} Kb2 {[%clk
00:02:57]} {[%emt 00:00:11]} 52. Be6 {[%clk 00:00:42]} {[%emt 00:00:02]} Bb3
{[%clk 00:02:50]} {[%emt 00:00:13]} 53. Bf7 {[%clk 00:00:36]} {[%emt 00:00:11]}
Bc2 {[%clk 00:02:29]} {[%emt 00:00:26]} 54. Bc4 {[%clk 00:00:35]} {[%emt
00:00:05]} Bb3 {[%clk 00:02:26]} {[%emt 00:00:09]} 55. Bf7 {[%clk 00:00:38]}
{[%emt 00:00:03]} Ka3 {[%clk 00:02:27]} {[%emt 00:00:04]} 56. Be6 {[%clk
00:00:35]} {[%emt 00:00:07]} Kb4 {[%clk 00:02:21]} {[%emt 00:00:11]} 57. Bf7
{[%clk 00:00:35]} {[%emt 00:00:04]} Ba4 {[%clk 00:02:10]} {[%emt 00:00:17]}
1/2-1/2

[Event "MCR rapid mládeže 2023 U16"]
[Site "Harachov, Czech Republic"]
[Date "2023.09.10"]
[Round "7.31"]
[White "Mauric, Jan"]
[Black "Moravec, Rene"]
[Result "0-1"]
[TimeControl "20min+5s/move"]
[WhiteElo "1260"]
[BlackElo "1165"]

1. d4 {[%clk 00:20:08]} {[%emt 00:00:01]} Nf6 {[%clk 00:20:08]} {[%emt
00:00:03]} 2. Bf4 {[%clk 00:20:10]} {[%emt 00:00:03]} d5 {[%clk 00:20:10]}
{[%emt 00:00:03]} 3. Nf3 {[%clk 00:20:13]} {[%emt 00:00:02]} c5 {[%clk
00:19:33]} {[%emt 00:00:42]} 4. c3 {[%clk 00:20:16]} {[%emt 00:00:02]} Nc6
{[%clk 00:19:24]} {[%emt 00:00:14]} 5. e3 {[%clk 00:20:11]} {[%emt 00:00:09]}
Bg4 {[%clk 00:18:46]} {[%emt 00:00:43]} 6. Bd3 {[%clk 00:19:50]} {[%emt
00:00:27]} e6 {[%clk 00:18:24]} {[%emt 00:00:27]} 7. Nbd2 {[%clk 00:19:40]}
{[%emt 00:00:14]} Be7 {[%clk 00:17:48]} {[%emt 00:00:41]} 8. h3 {[%clk
00:19:40]} {[%emt 00:00:05]} Bh5 {[%clk 00:17:47]} {[%emt 00:00:06]} 9. Qa4
{[%clk 00:18:43]} {[%emt 00:01:02]} O-O {[%clk 00:17:13]} {[%emt 00:00:38]} 10.
g4 {[%clk 00:18:11]} {[%emt 00:00:38]} Bg6 {[%clk 00:17:10]} {[%emt 00:00:07]}
11. Bxg6 {[%clk 00:17:55]} {[%emt 00:00:21]} fxg6 {[%clk 00:17:12]} {[%emt
00:00:03]} 12. Qc2 {[%clk 00:17:25]} {[%emt 00:00:36]} Bd6 {[%clk 00:16:42]}
{[%emt 00:00:34]} 13. Bxd6 {[%clk 00:16:21]} {[%emt 00:01:09]} Qxd6 {[%clk
00:16:45]} {[%emt 00:00:02]} 14. dxc5 {[%clk 00:15:32]} {[%emt 00:00:54]} Qxc5
{[%clk 00:16:28]} {[%emt 00:00:23]} 15. Nb3 {[%clk 00:15:32]} {[%emt 00:00:05]}
Qb6 {[%clk 00:15:25]} {[%emt 00:01:07]} 16. Rg1 {[%clk 00:15:05]} {[%emt
00:00:32]} Ne4 {[%clk 00:14:35]} {[%emt 00:00:55]} 17. Qe2 {[%clk 00:13:19]}
{[%emt 00:01:51]} Rf7 {[%clk 00:14:14]} {[%emt 00:00:26]} 18. O-O-O {[%clk
00:10:10]} {[%emt 00:03:15]} Raf8 {[%clk 00:14:02]} {[%emt 00:00:17]} 19. Nfd4
{[%clk 00:07:18]} {[%emt 00:02:57]} Rxf2 {[%clk 00:11:54]} {[%emt 00:02:13]} 20.
Qe1 {[%clk 00:07:03]} {[%emt 00:00:19]} Nxd4 {[%clk 00:06:32]} {[%emt
00:05:28]} 21. exd4 {[%clk 00:07:06]} {[%emt 00:00:01]} Qa6 {[%clk 00:06:19]}
{[%emt 00:00:19]} 22. Kb1 {[%clk 00:07:09]} {[%emt 00:00:02]} Re2 {[%clk
00:05:43]} {[%emt 00:00:41]} 23. Qh4 {[%clk 00:06:31]} {[%emt 00:00:42]} Nxc3+
{[%clk 00:05:38]} {[%emt 00:00:09]} 24. Kc1 {[%clk 00:06:19]} {[%emt 00:00:19]}
Nxa2+ {[%clk 00:05:36]} {[%emt 00:00:07]} 25. Kb1 {[%clk 00:06:16]} {[%emt
00:00:07]} Nc3+ {[%clk 00:05:39]} {[%emt 00:00:02]} 26. Kc1 {[%clk 00:06:13]}
{[%emt 00:00:08]} Qa2 {[%clk 00:04:38]} {[%emt 00:01:05]} 27. Rd2 {[%clk
00:05:53]} {[%emt 00:00:26]} Qb1# {[%clk 00:04:31]} {[%emt 00:00:08]} 0-1

[Event "MCR rapid mládeže 2023 U16"]
[Site "Harachov, Czech Republic"]
[Date "2023.09.10"]
[Round "7.32"]
[White "Bartak, Tobias"]
[Black "Zelenka, Tomas"]
[Result "0-1"]
[TimeControl "20min+5s/move"]
[WhiteElo "1259"]
[BlackElo "1457"]

1. e4 {[%clk 00:20:07]} {[%emt 00:00:01]} c5 {[%clk 00:20:09]} {[%emt
00:00:01]} 2. Nf3 {[%clk 00:20:10]} {[%emt 00:00:03]} Nc6 {[%clk 00:20:12]}
{[%emt 00:00:01]} 3. Bb5 {[%clk 00:20:06]} {[%emt 00:00:09]} g6 {[%clk
00:20:16]} {[%emt 00:00:02]} 4. d4 {[%emt 00:00:09]} cxd4 {[%clk 00:19:53]}
{[%emt 00:00:26]} 5. Bxc6 {[%clk 00:19:51]} {[%emt 00:00:18]} dxc6 {[%clk
00:19:46]} {[%emt 00:00:12]} 6. Nxd4 {[%clk 00:19:41]} {[%emt 00:00:15]} Bg7
{[%clk 00:19:42]} {[%emt 00:00:09]} 7. Be3 {[%clk 00:19:34]} {[%emt 00:00:11]}
Nf6 {[%clk 00:19:40]} {[%emt 00:00:08]} 8. Nc3 {[%clk 00:19:20]} {[%emt
00:00:18]} Ng4 {[%clk 00:19:28]} {[%emt 00:00:18]} 9. O-O {[%clk 00:18:45]}
{[%emt 00:00:40]} O-O {[%clk 00:19:07]} {[%emt 00:00:26]} 10. h3 {[%clk
00:18:16]} {[%emt 00:00:34]} Nxe3 {[%clk 00:19:07]} {[%emt 00:00:05]} 11. fxe3
{[%clk 00:18:16]} {[%emt 00:00:04]} c5 {[%clk 00:18:27]} {[%emt 00:00:46]} 12.
Nb3 {[%clk 00:17:28]} {[%emt 00:00:53]} b6 {[%clk 00:18:13]} {[%emt 00:00:19]}
13. Qf3 {[%clk 00:16:28]} {[%emt 00:01:04]} Bb7 {[%clk 00:17:16]} {[%emt
00:01:02]} 14. Rad1 {[%clk 00:16:09]} {[%emt 00:00:24]} Qc7 {[%clk 00:17:06]}
{[%emt 00:00:13]} 15. Rd2 {[%clk 00:13:02]} {[%emt 00:03:15]} e6 {[%clk
00:14:28]} {[%emt 00:02:43]} 16. Rfd1 {[%clk 00:12:18]} {[%emt 00:00:49]} Rad8
{[%clk 00:14:14]} {[%emt 00:00:18]} 17. Rxd8 {[%clk 00:12:06]} {[%emt
00:00:17]} Rxd8 {[%clk 00:14:17]} {[%emt 00:00:02]} 18. Rxd8+ {[%clk 00:12:10]}
{[%emt 00:00:02]} Qxd8 {[%clk 00:14:20]} {[%emt 00:00:01]} 19. Qf4 {[%clk
00:11:58]} {[%emt 00:00:17]} Ba6 {[%clk 00:12:47]} {[%emt 00:01:37]} 20. e5
{[%clk 00:11:09]} {[%emt 00:00:56]} Bb7 {[%clk 00:12:17]} {[%emt 00:00:33]} 21.
e4 {[%clk 00:10:03]} {[%emt 00:01:13]} c4 {[%clk 00:11:48]} {[%emt 00:00:34]}
22. Nd2 {[%clk 00:09:54]} {[%emt 00:00:14]} Qd4+ {[%clk 00:11:05]} {[%emt
00:00:47]} 23. Kh1 {[%clk 00:09:16]} {[%emt 00:00:44]} Bxe5 {[%clk 00:10:59]}
{[%emt 00:00:11]} 24. Qg5 {[%clk 00:08:34]} {[%emt 00:00:45]} Bg7 {[%clk
00:10:01]} {[%emt 00:01:04]} 25. Nb5 {[%clk 00:06:39]} {[%emt 00:02:01]} Qxb2
{[%clk 00:09:31]} {[%emt 00:00:35]} 26. Qd8+ {[%clk 00:06:29]} {[%emt
00:00:15]} Bf8 {[%clk 00:09:32]} {[%emt 00:00:03]} 27. Nd6 {[%clk 00:06:11]}
{[%emt 00:00:23]} Qa1+ {[%clk 00:09:11]} {[%emt 00:00:26]} 28. Kh2 {[%clk
00:05:47]} {[%emt 00:00:30]} Qe5+ {[%clk 00:09:10]} {[%emt 00:00:04]} 29. g3
{[%clk 00:05:18]} {[%emt 00:00:36]} Qxd6 {[%clk 00:09:11]} {[%emt 00:00:04]} 30.
Qg5 {[%clk 00:05:04]} {[%emt 00:00:18]} c3 {[%clk 00:08:28]} {[%emt 00:00:48]}
31. Nc4 {[%clk 00:04:35]} {[%emt 00:00:35]} Qd4 {[%clk 00:08:25]} {[%emt
00:00:04]} 32. Ne3 {[%clk 00:04:17]} {[%emt 00:00:26]} Qd2+ {[%clk 00:08:19]}
{[%emt 00:00:07]} 33. Kg1 {[%clk 00:04:16]} {[%emt 00:00:10]} Bc5 {[%clk
00:08:19]} {[%emt 00:00:06]} 34. Kf1 {[%clk 00:04:04]} {[%emt 00:00:16]} Ba6+
{[%clk 00:07:57]} {[%emt 00:00:28]} 35. Kg1 {[%clk 00:03:20]} {[%emt 00:00:49]}
Bxe3+ {[%clk 00:07:57]} {[%emt 00:00:05]} 36. Kh1 {[%clk 00:03:22]} {[%emt
00:00:02]} Qe1+ {[%clk 00:07:42]} {[%emt 00:00:18]} 37. Kh2 {[%clk 00:03:20]}
{[%emt 00:00:10]} Qg1# {[%emt 00:00:03]} 0-1

[Event "MCR rapid mládeže 2023 U16"]
[Site "Harachov, Czech Republic"]
[Date "2023.09.10"]
[Round "7.33"]
[White "Vorlik, Jachym"]
[Black "Bucek, Vit"]
[Result "0-1"]
[TimeControl "20min+5s/move"]
[WhiteElo "1210"]
[BlackElo "1283"]

1. e4 {[%clk 00:20:07]} {[%emt 00:00:02]} c5 {[%clk 00:20:09]} {[%emt
00:00:02]} 2. Nf3 {[%clk 00:20:08]} {[%emt 00:00:04]} Nc6 {[%clk 00:20:11]}
{[%emt 00:00:03]} 3. Nc3 {[%clk 00:20:08]} {[%emt 00:00:05]} g6 {[%clk
00:20:10]} {[%emt 00:00:05]} 4. d4 {[%clk 00:19:58]} {[%emt 00:00:16]} cxd4
{[%clk 00:20:12]} {[%emt 00:00:03]} 5. Nxd4 {[%clk 00:20:00]} {[%emt 00:00:03]}
Bg7 {[%clk 00:20:15]} {[%emt 00:00:01]} 6. Be3 {[%clk 00:20:02]} {[%emt
00:00:03]} d6 {[%clk 00:20:05]} {[%emt 00:00:16]} 7. Bb5 {[%clk 00:19:42]}
{[%emt 00:00:25]} Bd7 {[%clk 00:20:04]} {[%emt 00:00:05]} 8. Qd2 {[%clk
00:19:29]} {[%emt 00:00:19]} Nf6 {[%clk 00:19:38]} {[%emt 00:00:28]} 9. O-O-O
{[%clk 00:19:22]} {[%emt 00:00:14]} a6 {[%clk 00:19:09]} {[%emt 00:00:35]} 10.
Bxc6 {[%clk 00:18:46]} {[%emt 00:00:41]} bxc6 {[%clk 00:19:07]} {[%emt
00:00:07]} 11. f3 {[%clk 00:18:25]} {[%emt 00:00:26]} Rb8 {[%clk 00:18:46]}
{[%emt 00:00:26]} 12. h4 {[%clk 00:17:14]} {[%emt 00:01:15]} c5 {[%clk
00:18:33]} {[%emt 00:00:18]} 13. Nde2 {[%clk 00:16:46]} {[%emt 00:00:34]} Qb6
{[%clk 00:17:55]} {[%emt 00:00:38]} 14. b3 {[%clk 00:16:34]} {[%emt 00:00:22]}
a5 {[%clk 00:17:07]} {[%emt 00:00:52]} 15. Bg5 {[%clk 00:14:57]} {[%emt
00:01:42]} a4 {[%clk 00:16:57]} {[%emt 00:00:13]} 16. e5 {[%clk 00:14:24]}
{[%emt 00:00:41]} axb3 {[%clk 00:12:16]} {[%emt 00:04:46]} 17. cxb3 {[%clk
00:13:59]} {[%emt 00:00:30]} Ng8 {[%clk 00:09:39]} {[%emt 00:02:42]} 18. exd6
{[%clk 00:13:35]} {[%emt 00:00:29]} exd6 {[%clk 00:09:03]} {[%emt 00:00:40]} 19.
Qxd6 {[%clk 00:13:26]} {[%emt 00:00:15]} Qa7 {[%clk 00:07:33]} {[%emt
00:01:22]} 20. Bf4 {[%clk 00:12:24]} {[%emt 00:01:18]} Ra8 {[%clk 00:06:49]}
{[%emt 00:00:43]} 21. Rhe1 {[%clk 00:09:32]} {[%emt 00:03:05]} Qa3+ {[%clk
00:05:25]} {[%emt 00:01:26]} 22. Kc2 {[%clk 00:09:26]} {[%emt 00:00:14]} Bf5+
{[%clk 00:05:08]} {[%emt 00:00:18]} 23. Kd2 {[%clk 00:08:29]} {[%emt 00:01:05]}
Bxc3+ {[%clk 00:03:45]} {[%emt 00:01:28]} 24. Nxc3+ {[%clk 00:08:10]} {[%emt
00:00:24]} Be6 {[%clk 00:03:12]} {[%emt 00:00:33]} 25. Qc6+ {[%clk 00:06:37]}
{[%emt 00:01:42]} Kf8 {[%clk 00:02:42]} {[%emt 00:00:31]} 26. Bd6+ {[%clk
00:06:30]} {[%emt 00:00:18]} Kg7 {[%clk 00:02:29]} {[%emt 00:00:16]} 27. Be5+
{[%clk 00:06:17]} {[%emt 00:00:19]} Nf6 {[%clk 00:02:00]} {[%emt 00:00:34]} 28.
Bxf6+ {[%clk 00:05:07]} {[%emt 00:01:16]} Kxf6 {[%clk 00:01:56]} {[%emt
00:00:08]} 29. Kc2 {[%clk 00:02:35]} {[%emt 00:02:13]} Kg7 {[%clk 00:01:39]}
{[%emt 00:00:44]} 30. g4 {[%emt 00:01:23]} Rhb8 {[%emt 00:00:37]} 31. Rb1
{[%emt 00:00:17]} h5 {[%emt 00:01:11]} 32. Re4 {[%emt 00:00:15]} Rc8 {[%emt
00:00:08]} 33. Qd6 {[%clk 00:00:32]} {[%emt 00:00:02]} Rd8 {[%emt 00:00:06]} 34.
Qe5+ {[%clk 00:00:32]} {[%emt 00:00:01]} Kg8 {[%emt 00:00:05]} 35. Qh2 {[%clk
00:00:22]} {[%emt 00:00:12]} Re8 {[%emt 00:00:04]} 36. Rb2 {[%clk 00:00:18]}
{[%emt 00:00:09]} hxg4 {[%clk 00:00:35]} {[%emt 00:00:04]} 37. fxg4 {[%clk
00:00:19]} {[%emt 00:00:04]} Rab8 {[%clk 00:00:25]} {[%emt 00:00:15]} 38. Qe2
{[%clk 00:00:16]} {[%emt 00:00:08]} Bd7 {[%clk 00:00:21]} {[%emt 00:00:09]} 39.
Qd3 {[%clk 00:00:17]} {[%emt 00:00:03]} Rxe4 {[%emt 00:00:06]} 40. Qxe4 {[%emt
00:00:03]} Re8 {[%clk 00:00:26]} 41. Qc4 {[%clk 00:00:16]} {[%emt 00:00:09]}
Be6 {[%clk 00:00:25]} {[%emt 00:00:03]} 42. Qb5 {[%clk 00:00:20]} {[%emt
00:00:03]} Rd8 {[%clk 00:00:25]} {[%emt 00:00:04]} 43. Qb6 {[%emt 00:00:05]}
Ra8 {[%emt 00:00:08]} 44. Qc6 {[%emt 00:00:04]} Rd8 {[%emt 00:00:09]} 45. Qc7
{[%clk 00:00:20]} Rc8 {[%clk 00:00:26]} {[%emt 00:00:03]} 46. Qe5 {[%emt
00:00:11]} Bxg4 {[%clk 00:00:22]} {[%emt 00:00:01]} 47. Nb5 {[%clk 00:00:19]}
{[%emt 00:00:09]} Qb4 {[%clk 00:00:22]} {[%emt 00:00:03]} 48. Nd6 {[%clk
00:00:18]} {[%emt 00:00:07]} Rd8 {[%clk 00:00:22]} {[%emt 00:00:03]} 49. Qf6
{[%clk 00:00:16]} {[%emt 00:00:10]} Bf5+ {[%clk 00:00:20]} {[%emt 00:00:06]} 50.
Nxf5 {[%clk 00:00:10]} {[%emt 00:00:13]} Qd2+ {[%clk 00:00:22]} {[%emt
00:00:01]} 0-1